fUST/lending_fUST_20260521
["ID","MTS","AMOUNT","RATE_DAILY","PERIOD"]
[422755434,1779367839000,-161.7158655,8.591e-05,2]
[422755437,1779367839000,-500.0,8.865e-05,2]
[422755441,1779367839000,-500.0,8.865e-05,2]
[422755452,1779367839000,-500.0,8.865e-05,2]
[422755450,1779367839000,-500.0,8.865e-05,2]
[422755449,1779367839000,-500.0,8.865e-05,2]
[422755442,1779367839000,-500.0,8.865e-05,2]
[422755446,1779367839000,-500.0,8.865e-05,2]
[422755440,1779367839000,-500.0,8.865e-05,2]
[422755475,1779367839000,-500.0,8.937e-05,2]
[422755504,1779367839000,-500.0,8.937e-05,2]
[422755474,1779367839000,-500.0,8.937e-05,2]
[422755508,1779367839000,-500.0,8.937e-05,2]
[422755509,1779367839000,-500.0,8.937e-05,2]
[422755518,1779367839000,-1067.23866668,8.964e-05,2]
[422755513,1779367839000,-1067.23866668,8.964e-05,2]
[422755515,1779367839000,-1067.23866668,8.964e-05,2]
[422755519,1779367839000,-1067.23866668,8.964e-05,2]
[422755516,1779367839000,-166.30112392,8.964e-05,2]
[422755514,1779367839000,-1067.23866668,8.964e-05,2]
[422755512,1779367839000,-500.0,8.964e-05,2]
[422755520,1779367839000,-1067.23866668,8.964e-05,2]
[422755522,1779367839000,-1067.23866668,8.964e-05,2]
[422755523,1779367839000,-1067.23866668,8.964e-05,2]
[422755532,1779367839000,-1067.23866668,8.964e-05,2]
[422755521,1779367839000,-1067.23866668,8.964e-05,2]
[422755524,1779367839000,-1067.23866668,8.964e-05,2]
[422755533,1779367839000,-1067.23866668,8.964e-05,2]
[422755525,1779367839000,-1067.23866668,8.964e-05,2]
[422755528,1779367839000,-1067.23866668,8.964e-05,2]
[422755526,1779367839000,-159.15024578,8.964e-05,2]
[422755527,1779367839000,-908.0884209,8.964e-05,2]
[422755531,1779367839000,-1067.23866668,8.964e-05,2]
[422755530,1779367839000,-1067.23866668,8.964e-05,2]
[422755529,1779367839000,-1067.23866668,8.964e-05,2]
[422755534,1779367839000,-1067.23866668,8.964e-05,2]
[422755536,1779367839000,-3602.28317333,8.965e-05,2]
[422755511,1779367839000,-16799.77960483,8.939e-05,2]
[422755510,1779367839000,-166.76412478,8.938e-05,2]
[422755517,1779367839000,-1067.23866668,8.964e-05,2]
[422755501,1779367839000,-500.0,8.937e-05,2]
[422755482,1779367839000,-500.0,8.937e-05,2]
[422755507,1779367839000,-500.0,8.937e-05,2]
[422755485,1779367839000,-500.0,8.937e-05,2]
[422755481,1779367839000,-500.0,8.937e-05,2]
[422755484,1779367839000,-500.0,8.937e-05,2]
[422755493,1779367839000,-500.0,8.937e-05,2]
[422755487,1779367839000,-500.0,8.937e-05,2]
[422755483,1779367839000,-500.0,8.937e-05,2]
[422755489,1779367839000,-451.94257632,8.937e-05,2]
[422755490,1779367839000,-500.0,8.937e-05,2]
[422755488,1779367839000,-500.0,8.937e-05,2]
[422755491,1779367839000,-500.0,8.937e-05,2]
[422755486,1779367839000,-500.0,8.937e-05,2]
[422755492,1779367839000,-500.0,8.937e-05,2]
[422755495,1779367839000,-500.0,8.937e-05,2]
[422755535,1779367839000,-49255.58476577,8.965e-05,2]
[422755506,1779367839000,-500.0,8.937e-05,2]
[422755505,1779367839000,-500.0,8.937e-05,2]
[422755499,1779367839000,-500.0,8.937e-05,2]
[422755500,1779367839000,-500.0,8.937e-05,2]
[422755502,1779367839000,-500.0,8.937e-05,2]
[422755476,1779367839000,-500.0,8.937e-05,2]
[422755496,1779367839000,-500.0,8.937e-05,2]
[422755503,1779367839000,-500.0,8.937e-05,2]
[422755494,1779367839000,-500.0,8.937e-05,2]
[422755497,1779367839000,-500.0,8.937e-05,2]
[422755498,1779367839000,-500.0,8.937e-05,2]
[422755545,1779367844000,-500.0,8.865e-05,2]
[422755547,1779367844000,-1335.28898699,8.965e-05,2]
[422755548,1779367844000,-2682.75126377,8.965e-05,2]
[422755549,1779367844000,-401.79701402,8.965e-05,2]
[422755550,1779367844000,-10828.6594506,8.965e-05,2]
[422755546,1779367844000,-4932.59091391,8.965e-05,2]
[422755551,1779367844000,-302.62139999,8.965e-05,2]
[422755559,1779367847000,-3875.2381898,8.965e-05,2]
[422755558,1779367847000,-6692.46837274,8.965e-05,2]
[422755560,1779367847000,-18388.30750984,8.965e-05,2]
[422755561,1779367847000,-97442.93744851,8.965e-05,2]
[422755571,1779367973000,151.0,0.00013689,60]
[422755572,1779367993000,151.0,0.00017808,120]
[422755573,1779368018000,151.0,0.00017808,120]
[422755574,1779368034000,151.0,0.00013689,60]
[422755575,1779368068000,162.52836242,0.00013689,60]
[422755585,1779368717000,165.935515,3.851e-05,2]
[422755607,1779368811000,1000.0,5.03e-05,2]
[422755604,1779368811000,1000.0,5.03e-05,2]
[422755605,1779368811000,1000.0,5.03e-05,2]
[422755606,1779368811000,1000.0,5.03e-05,2]
[422755603,1779368811000,672.6622034,5.03e-05,2]
[422755608,1779368860000,208.71062792,5e-05,2]
[422755610,1779369002000,5000.0,5e-05,2]
[422755611,1779369025000,5000.0,5e-05,2]
[422755654,1779369031000,-490.25993868,5.057e-05,2]
[422755694,1779369032000,-49.77779494,8.759e-05,2]
[422755656,1779369032000,-165.935515,5.085e-05,2]
[422755673,1779369032000,-1200.0,8.497e-05,2]
[422755669,1779369032000,-187.13428689,8.447e-05,2]
[422755677,1779369032000,-500.0,8.498e-05,2]
[422755675,1779369032000,-602.68973818,8.498e-05,2]
[422755679,1779369032000,-500.0,8.498e-05,2]
[422755658,1779369032000,-165.935515,6.318e-05,2]
[422755662,1779369032000,-165.935515,7.552e-05,2]
[422755666,1779369032000,-233.9536766,8.219e-05,5]
[422755671,1779369032000,-300.0,8.497e-05,2]
[422755683,1779369032000,-500.0,8.498e-05,2]
[422755660,1779369032000,-578.50672765,7.057e-05,2]
[422755668,1779369032000,-467.90735321,8.425e-05,5]
[422755664,1779369032000,-325.9226287,8.188e-05,2]
[422755696,1779369032000,-315.53830768,8.759e-05,2]
[422755698,1779369032000,-444.5202387,8.762e-05,2]
[422755686,1779369032000,-766.48970852,8.594e-05,2]
[422755690,1779369032000,-500.0,8.759e-05,2]
[422755688,1779369032000,-500.0,8.743e-05,2]
[422755681,1779369032000,-458.42941753,8.498e-05,2]
[422755692,1779369032000,-487.90670506,8.759e-05,2]
[422755902,1779369038000,-500.0,8.763e-05,2]
[422755899,1779369038000,-363.43007016,8.763e-05,2]
[422755896,1779369038000,-500.0,8.763e-05,2]
[422755898,1779369038000,-150.45964797,8.763e-05,2]
[422755906,1779369038000,-1163.57261066,8.763e-05,2]
[422755900,1779369038000,-500.0,8.763e-05,2]
[422755894,1779369038000,-500.0,8.763e-05,2]
[422755895,1779369038000,-500.0,8.763e-05,2]
[422755905,1779369038000,-1163.57261066,8.763e-05,2]
[422755901,1779369038000,-500.0,8.763e-05,2]
[422755897,1779369038000,-500.0,8.763e-05,2]
[422755903,1779369038000,-500.0,8.763e-05,2]
[422755915,1779369038000,-1163.57261066,8.763e-05,2]
[422755907,1779369038000,-1163.57261066,8.763e-05,2]
[422755908,1779369038000,-1163.57261066,8.763e-05,2]
[422755918,1779369038000,-1163.57261066,8.763e-05,2]
[422755909,1779369038000,-1163.57261066,8.763e-05,2]
[422755911,1779369038000,-1163.57261066,8.763e-05,2]
[422755910,1779369038000,-1163.57261066,8.763e-05,2]
[422755917,1779369038000,-1163.57261066,8.763e-05,2]
[422755916,1779369038000,-1163.57261066,8.763e-05,2]
[422755914,1779369038000,-1163.57261066,8.763e-05,2]
[422755892,1779369038000,-500.0,8.763e-05,2]
[422755919,1779369038000,-1163.57261066,8.763e-05,2]
[422755913,1779369038000,-1163.57261066,8.763e-05,2]
[422755904,1779369038000,-347.74741806,8.763e-05,2]
[422755890,1779369038000,-500.0,8.763e-05,2]
[422755882,1779369038000,-500.0,8.763e-05,2]
[422755885,1779369038000,-500.0,8.763e-05,2]
[422755912,1779369038000,-1163.57261066,8.763e-05,2]
[422755865,1779369038000,-55.4797613,8.762e-05,2]
[422755866,1779369038000,-500.0,8.763e-05,2]
[422755868,1779369038000,-500.0,8.763e-05,2]
[422755874,1779369038000,-500.0,8.763e-05,2]
[422755875,1779369038000,-3140.83,8.763e-05,2]
[422755870,1779369038000,-500.0,8.763e-05,2]
[422755879,1779369038000,-500.0,8.763e-05,2]
[422755876,1779369038000,-500.0,8.763e-05,2]
[422755872,1779369038000,-500.0,8.763e-05,2]
[422755877,1779369038000,-500.0,8.763e-05,2]
[422755878,1779369038000,-500.0,8.763e-05,2]
[422755869,1779369038000,-500.0,8.763e-05,2]
[422755873,1779369038000,-500.0,8.763e-05,2]
[422755871,1779369038000,-501.26156032,8.763e-05,2]
[422755867,1779369038000,-500.0,8.763e-05,2]
[422755880,1779369038000,-500.0,8.763e-05,2]
[422755883,1779369038000,-500.0,8.763e-05,2]
[422755881,1779369038000,-500.0,8.763e-05,2]
[422755891,1779369038000,-500.0,8.763e-05,2]
[422755884,1779369038000,-500.0,8.763e-05,2]
[422755886,1779369038000,-500.0,8.763e-05,2]
[422755893,1779369038000,-500.0,8.763e-05,2]
[422755887,1779369038000,-500.0,8.763e-05,2]
[422755888,1779369038000,-500.0,8.763e-05,2]
[422755889,1779369038000,-500.0,8.763e-05,2]
[422755921,1779369038000,-585.01531221,8.764e-05,2]
[422755923,1779369038000,-500.0,8.764e-05,2]
[422755922,1779369038000,-530.02,8.764e-05,2]
[422755950,1779369038000,-500.0,8.764e-05,2]
[422755952,1779369038000,-500.0,8.764e-05,2]
[422755946,1779369038000,-500.0,8.764e-05,2]
[422755956,1779369038000,-500.0,8.764e-05,2]
[422755951,1779369038000,-500.0,8.764e-05,2]
[422755953,1779369038000,-500.0,8.764e-05,2]
[422755962,1779369038000,-500.0,8.764e-05,2]
[422755960,1779369038000,-500.0,8.764e-05,2]
[422755968,1779369038000,-500.0,8.764e-05,2]
[422755972,1779369038000,-500.0,8.764e-05,2]
[422755973,1779369038000,-501.56126943,8.764e-05,2]
[422755964,1779369038000,-500.0,8.764e-05,2]
[422755969,1779369038000,-500.0,8.764e-05,2]
[422755961,1779369038000,-500.0,8.764e-05,2]
[422755966,1779369038000,-500.0,8.764e-05,2]
[422755971,1779369038000,-500.0,8.764e-05,2]
[422755963,1779369038000,-501.92690453,8.764e-05,2]
[422755965,1779369038000,-500.0,8.764e-05,2]
[422755970,1779369038000,-500.0,8.764e-05,2]
[422755967,1779369038000,-583.58120529,8.764e-05,2]
[422755975,1779369038000,-500.0,8.765e-05,2]
[422755974,1779369038000,-34310.53230012,8.764e-05,2]
[422755976,1779369038000,-181.30234355,8.765e-05,2]
[422755977,1779369038000,-500.0,8.772e-05,2]
[422755920,1779369038000,-1163.57261066,8.763e-05,2]
[422755955,1779369038000,-150.83944511,8.764e-05,2]
[422755948,1779369038000,-500.0,8.764e-05,2]
[422755949,1779369038000,-500.0,8.764e-05,2]
[422755958,1779369038000,-500.0,8.764e-05,2]
[422755927,1779369038000,-517.29116514,8.764e-05,2]
[422755930,1779369038000,-500.0,8.764e-05,2]
[422755928,1779369038000,-433.68864525,8.764e-05,2]
[422755931,1779369038000,-500.0,8.764e-05,2]
[422755932,1779369038000,-500.0,8.764e-05,2]
[422755926,1779369038000,-239.61777077,8.764e-05,2]
[422755924,1779369038000,-500.0,8.764e-05,2]
[422755925,1779369038000,-1467.1,8.764e-05,2]
[422755978,1779369038000,-500.0,8.772e-05,2]
[422755954,1779369038000,-500.0,8.764e-05,2]
[422755933,1779369038000,-501.40073097,8.764e-05,2]
[422755935,1779369038000,-500.0,8.764e-05,2]
[422755936,1779369038000,-501.36278766,8.764e-05,2]
[422755929,1779369038000,-500.0,8.764e-05,2]
[422755940,1779369038000,-500.0,8.764e-05,2]
[422755941,1779369038000,-500.0,8.764e-05,2]
[422755943,1779369038000,-500.0,8.764e-05,2]
[422755939,1779369038000,-500.0,8.764e-05,2]
[422755937,1779369038000,-501.38718463,8.764e-05,2]
[422755942,1779369038000,-501.56083815,8.764e-05,2]
[422755944,1779369038000,-500.0,8.764e-05,2]
[422755934,1779369038000,-500.0,8.764e-05,2]
[422755945,1779369038000,-500.0,8.764e-05,2]
[422755947,1779369038000,-500.0,8.764e-05,2]
[422755938,1779369038000,-500.0,8.764e-05,2]
[422755957,1779369038000,-500.0,8.764e-05,2]
[422755959,1779369038000,-500.0,8.764e-05,2]
[422755986,1779369039000,-28537.01819334,8.814e-05,2]
[422755985,1779369039000,-500.0,8.763e-05,2]
[422755982,1779369039000,-537.68450001,8.814e-05,2]
[422755990,1779369039000,-2019.63669089,8.88e-05,2]
[422755980,1779369039000,-162.380719,8.809e-05,2]
[422755984,1779369039000,-28134.964952,8.814e-05,2]
[422755983,1779369039000,-12003.15409759,8.814e-05,2]
[422755979,1779369039000,-500.0,8.772e-05,2]
[422755987,1779369039000,-1007.86148584,8.814e-05,2]
[422755981,1779369039000,-537.6845,8.809e-05,2]
[422755988,1779369039000,-161.7158655,8.84e-05,2]
[422755996,1779369039000,-2640.74832003,8.966e-05,2]
[422755998,1779369039000,-3551.20213298,9e-05,7]
[422755992,1779369039000,-451.778,8.913e-05,2]
[422755997,1779369039000,-181.30234355,8.993e-05,2]
[422755989,1779369039000,-582.15941691,8.88e-05,2]
[422755994,1779369039000,-151.0,8.965e-05,2]
[422755993,1779369039000,-166.15,8.959e-05,2]
[422755991,1779369039000,-922.7643,8.901e-05,2]
[422755995,1779369039000,-151.0,8.965e-05,2]
[422756015,1779369040000,-1197.10362736,9e-05,7]
[422756011,1779369040000,-500.0,8.763e-05,2]
[422756014,1779369040000,-6718.501097,9e-05,7]
[422756012,1779369040000,-15846.81602389,9e-05,7]
[422756024,1779369043000,-10064.35087487,9e-05,7]
[422756029,1779369043000,-7649.64680441,9e-05,7]
[422756026,1779369043000,-2408.86898391,9e-05,7]
[422756038,1779369043000,-500.0,8.763e-05,2]
[422756028,1779369043000,-657.5484785,9e-05,7]
[422756040,1779369043000,-52.0,9e-05,7]
[422756046,1779369043000,-10860.99925889,9e-05,7]
[422756139,1779369046000,-500.0,8.762e-05,2]
[422756140,1779369046000,-9344.16002706,9e-05,7]
[422756141,1779369046000,-77657.8535349,9e-05,7]
[422756143,1779369046000,-7199.29956112,9e-05,7]
[422756142,1779369046000,-13775.34759105,9e-05,7]
[422756159,1779369994000,422.02315585,0.00013556,60]
[422756160,1779369994000,185.15686053,0.00013556,60]
[422756161,1779369996000,607.18001638,0.00013786,120]
[422756163,1779370001000,259.52344327,0.00013566,60]
[422756162,1779370001000,147.07616621,0.00013566,60]
[422756164,1779370005000,406.59960948,0.00013789,120]
[422756166,1779370006000,406.59960948,0.00013863,120]
[422756165,1779370006000,406.59960948,0.00013826,120]
[422756167,1779370013000,1012.09685519,0.00013556,60]
[422756168,1779370019000,2599.0299115,0.00013775,120]
[422756169,1779370019000,2599.0299115,0.00013797,120]
[422756171,1779370020000,2599.0299115,0.00013841,120]
[422756170,1779370020000,2599.0299115,0.00013819,120]
[422756173,1779370168000,165.749518,3.746e-05,2]
[422756190,1779370232000,-384.768375,7.339e-05,2]
[422756371,1779370238000,-3236.56977187,8.172e-05,2]
[422756368,1779370238000,-2883.6224118,7.972e-05,2]
[422756370,1779370238000,-3060.09609184,8.072e-05,2]
[422756372,1779370238000,-325.9226287,8.182e-05,2]
[422756367,1779370238000,-2707.14873176,7.872e-05,2]
[422756366,1779370238000,-300.0,7.824e-05,2]
[422756358,1779370238000,-300.0,7.824e-05,2]
[422756364,1779370238000,-300.0,7.824e-05,2]
[422756365,1779370238000,-300.0,7.824e-05,2]
[422756374,1779370238000,-1680.0,8.328e-05,2]
[422756373,1779370238000,-600.0,8.2e-05,2]
[422756369,1779370238000,-476.38397264,8.04e-05,2]
[422756363,1779370238000,-300.0,7.824e-05,2]
[422756354,1779370238000,-300.0,7.824e-05,2]
[422756362,1779370238000,-300.0,7.824e-05,2]
[422756357,1779370238000,-300.0,7.824e-05,2]
[422756356,1779370238000,-300.0,7.824e-05,2]
[422756344,1779370238000,-502.2666211,7.413e-05,2]
[422756343,1779370238000,-4615.231625,7.339e-05,2]
[422756346,1779370238000,-1182.59944831,7.472e-05,2]
[422756345,1779370238000,-441.4529596,7.471e-05,2]
[422756347,1779370238000,-1200.0,7.571e-05,2]
[422756348,1779370238000,-2297.24276794,7.572e-05,2]
[422756361,1779370238000,-300.0,7.824e-05,2]
[422756350,1779370238000,-2354.20137181,7.672e-05,2]
[422756351,1779370238000,-2530.67505173,7.772e-05,2]
[422756353,1779370238000,-300.0,7.824e-05,2]
[422756359,1779370238000,-300.0,7.824e-05,2]
[422756352,1779370238000,-300.0,7.824e-05,2]
[422756355,1779370238000,-300.0,7.824e-05,2]
[422756360,1779370238000,-300.0,7.824e-05,2]
[422756349,1779370238000,-300.0,7.671e-05,2]
[422756376,1779370238000,-420.0,8.438e-05,2]
[422756391,1779370238000,-180.96854345,8.462e-05,2]
[422756375,1779370238000,-3411.88608757,8.431e-05,2]
[422756377,1779370238000,-500.0,8.461e-05,2]
[422756408,1779370238000,-500.0,8.462e-05,2]
[422756401,1779370238000,-500.0,8.462e-05,2]
[422756404,1779370238000,-500.0,8.462e-05,2]
[422756406,1779370238000,-575.74,8.462e-05,2]
[422756409,1779370238000,-500.0,8.462e-05,2]
[422756403,1779370238000,-500.0,8.462e-05,2]
[422756405,1779370238000,-500.0,8.462e-05,2]
[422756402,1779370238000,-500.0,8.462e-05,2]
[422756400,1779370238000,-532.13,8.462e-05,2]
[422756397,1779370238000,-500.0,8.462e-05,2]
[422756398,1779370238000,-500.0,8.462e-05,2]
[422756387,1779370238000,-500.0,8.462e-05,2]
[422756399,1779370238000,-500.0,8.462e-05,2]
[422756396,1779370238000,-500.0,8.462e-05,2]
[422756407,1779370238000,-500.0,8.462e-05,2]
[422756390,1779370238000,-500.0,8.462e-05,2]
[422756392,1779370238000,-500.0,8.462e-05,2]
[422756384,1779370238000,-500.0,8.461e-05,2]
[422756378,1779370238000,-500.0,8.461e-05,2]
[422756383,1779370238000,-500.0,8.461e-05,2]
[422756381,1779370238000,-500.0,8.461e-05,2]
[422756379,1779370238000,-500.0,8.461e-05,2]
[422756380,1779370238000,-500.0,8.461e-05,2]
[422756386,1779370238000,-500.0,8.462e-05,2]
[422756389,1779370238000,-576.04,8.462e-05,2]
[422756388,1779370238000,-500.0,8.462e-05,2]
[422756395,1779370238000,-724.54,8.462e-05,2]
[422756393,1779370238000,-500.0,8.462e-05,2]
[422756394,1779370238000,-4318.52,8.462e-05,2]
[422756382,1779370238000,-500.0,8.461e-05,2]
[422756385,1779370238000,-500.0,8.462e-05,2]
[422756454,1779370239000,-500.0,8.462e-05,2]
[422756448,1779370239000,-500.0,8.462e-05,2]
[422756447,1779370239000,-500.0,8.462e-05,2]
[422756445,1779370239000,-500.0,8.462e-05,2]
[422756444,1779370239000,-500.0,8.462e-05,2]
[422756452,1779370239000,-500.0,8.462e-05,2]
[422756442,1779370239000,-500.0,8.462e-05,2]
[422756453,1779370239000,-500.0,8.462e-05,2]
[422756449,1779370239000,-500.0,8.462e-05,2]
[422756451,1779370239000,-500.0,8.462e-05,2]
[422756446,1779370239000,-253.77668849,8.462e-05,2]
[422756455,1779370239000,-500.0,8.462e-05,2]
[422756462,1779370239000,-500.0,8.498e-05,2]
[422756468,1779370239000,-500.0,8.561e-05,2]
[422756466,1779370239000,-151.0,8.561e-05,2]
[422756467,1779370239000,-1235.25846324,8.561e-05,2]
[422756465,1779370239000,-500.0,8.559e-05,2]
[422756460,1779370239000,-16666.2842757,8.463e-05,2]
[422756463,1779370239000,-537.6845,8.559e-05,2]
[422756464,1779370239000,-162.380719,8.559e-05,2]
[422756456,1779370239000,-500.0,8.462e-05,2]
[422756459,1779370239000,-500.0,8.462e-05,2]
[422756458,1779370239000,-500.0,8.462e-05,2]
[422756457,1779370239000,-500.0,8.462e-05,2]
[422756469,1779370239000,-1235.25846324,8.561e-05,2]
[422756478,1779370239000,-1235.25846324,8.561e-05,2]
[422756481,1779370239000,-1235.25846324,8.561e-05,2]
[422756450,1779370239000,-500.0,8.462e-05,2]
[422756461,1779370239000,-168.4208582,8.473e-05,2]
[422756443,1779370239000,-500.0,8.462e-05,2]
[422756422,1779370239000,-500.0,8.462e-05,2]
[422756438,1779370239000,-500.0,8.462e-05,2]
[422756412,1779370239000,-500.0,8.462e-05,2]
[422756411,1779370239000,-500.0,8.462e-05,2]
[422756413,1779370239000,-500.0,8.462e-05,2]
[422756410,1779370239000,-639.48917915,8.462e-05,2]
[422756415,1779370239000,-500.0,8.462e-05,2]
[422756427,1779370239000,-500.0,8.462e-05,2]
[422756426,1779370239000,-500.0,8.462e-05,2]
[422756423,1779370239000,-500.0,8.462e-05,2]
[422756425,1779370239000,-500.0,8.462e-05,2]
[422756424,1779370239000,-500.0,8.462e-05,2]
[422756418,1779370239000,-500.0,8.462e-05,2]
[422756414,1779370239000,-500.0,8.462e-05,2]
[422756416,1779370239000,-500.0,8.462e-05,2]
[422756420,1779370239000,-185.58313279,8.462e-05,2]
[422756417,1779370239000,-500.0,8.462e-05,2]
[422756470,1779370239000,-208.26256737,8.561e-05,2]
[422756419,1779370239000,-220.64673228,8.462e-05,2]
[422756421,1779370239000,-500.0,8.462e-05,2]
[422756428,1779370239000,-540.12646623,8.462e-05,2]
[422756430,1779370239000,-500.0,8.462e-05,2]
[422756432,1779370239000,-500.0,8.462e-05,2]
[422756431,1779370239000,-500.0,8.462e-05,2]
[422756440,1779370239000,-500.0,8.462e-05,2]
[422756439,1779370239000,-500.0,8.462e-05,2]
[422756441,1779370239000,-500.0,8.462e-05,2]
[422756429,1779370239000,-500.0,8.462e-05,2]
[422756434,1779370239000,-526.5927704,8.462e-05,2]
[422756437,1779370239000,-500.0,8.462e-05,2]
[422756436,1779370239000,-500.0,8.462e-05,2]
[422756435,1779370239000,-500.0,8.462e-05,2]
[422756473,1779370239000,-1235.25846324,8.561e-05,2]
[422756433,1779370239000,-500.0,8.462e-05,2]
[422756475,1779370239000,-1235.25846324,8.561e-05,2]
[422756505,1779370239000,-500.0,8.661e-05,2]
[422756509,1779370239000,-500.0,8.661e-05,2]
[422756511,1779370239000,-500.0,8.661e-05,2]
[422756510,1779370239000,-500.0,8.661e-05,2]
[422756512,1779370239000,-500.0,8.661e-05,2]
[422756515,1779370239000,-500.0,8.661e-05,2]
[422756514,1779370239000,-501.67778628,8.661e-05,2]
[422756513,1779370239000,-501.29874819,8.661e-05,2]
[422756518,1779370239000,-500.0,8.661e-05,2]
[422756519,1779370239000,-500.0,8.661e-05,2]
[422756529,1779370239000,-500.0,8.663e-05,2]
[422756523,1779370239000,-709.1126,8.661e-05,2]
[422756520,1779370239000,-199.8235581,8.661e-05,2]
[422756522,1779370239000,-500.0,8.661e-05,2]
[422756521,1779370239000,-500.0,8.661e-05,2]
[422756526,1779370239000,-617.46967758,8.663e-05,2]
[422756524,1779370239000,-500.0,8.661e-05,2]
[422756527,1779370239000,-500.0,8.663e-05,2]
[422756525,1779370239000,-501.73192149,8.661e-05,2]
[422756528,1779370239000,-500.0,8.663e-05,2]
[422756531,1779370239000,-500.0,8.663e-05,2]
[422756530,1779370239000,-500.0,8.663e-05,2]
[422756533,1779370239000,-500.0,8.663e-05,2]
[422756535,1779370239000,-624.25233322,8.663e-05,2]
[422756534,1779370239000,-500.0,8.663e-05,2]
[422756538,1779370239000,-500.0,8.663e-05,2]
[422756536,1779370239000,-501.46782573,8.663e-05,2]
[422756540,1779370239000,-518.57610363,8.663e-05,2]
[422756477,1779370239000,-1235.25846324,8.561e-05,2]
[422756507,1779370239000,-500.0,8.661e-05,2]
[422756517,1779370239000,-500.0,8.661e-05,2]
[422756532,1779370239000,-500.0,8.663e-05,2]
[422756508,1779370239000,-1405.97,8.661e-05,2]
[422756472,1779370239000,-1235.25846324,8.561e-05,2]
[422756516,1779370239000,-500.0,8.661e-05,2]
[422756482,1779370239000,-1235.25846324,8.561e-05,2]
[422756471,1779370239000,-1235.25846324,8.561e-05,2]
[422756476,1779370239000,-1235.25846324,8.561e-05,2]
[422756480,1779370239000,-1235.25846324,8.561e-05,2]
[422756474,1779370239000,-1235.25846324,8.561e-05,2]
[422756483,1779370239000,-1235.25846324,8.561e-05,2]
[422756484,1779370239000,-1316.65296506,8.561e-05,2]
[422756485,1779370239000,-1316.65296506,8.561e-05,2]
[422756488,1779370239000,-1316.65296506,8.561e-05,2]
[422756487,1779370239000,-1316.65296506,8.561e-05,2]
[422756486,1779370239000,-1316.65296506,8.561e-05,2]
[422756489,1779370239000,-1316.65296506,8.561e-05,2]
[422756479,1779370239000,-1235.25846324,8.561e-05,2]
[422756491,1779370239000,-1316.65296506,8.561e-05,2]
[422756492,1779370239000,-1316.65296506,8.561e-05,2]
[422756497,1779370239000,-52293.92257199,8.564e-05,2]
[422756501,1779370239000,-501.93610241,8.661e-05,2]
[422756496,1779370239000,-170664.72912036,8.564e-05,2]
[422756502,1779370239000,-500.0,8.661e-05,2]
[422756498,1779370239000,-160.0,8.594e-05,2]
[422756499,1779370239000,-200.0,8.644e-05,2]
[422756503,1779370239000,-500.0,8.661e-05,2]
[422756494,1779370239000,-500.0,8.563e-05,2]
[422756504,1779370239000,-500.0,8.661e-05,2]
[422756500,1779370239000,-161.7158655,8.656e-05,2]
[422756493,1779370239000,-177.79866484,8.562e-05,2]
[422756506,1779370239000,-501.31782517,8.661e-05,2]
[422756495,1779370239000,-151.0,8.564e-05,2]
[422756590,1779370240000,-500.0,8.736e-05,2]
[422756589,1779370240000,-151.0,8.736e-05,2]
[422756579,1779370240000,-532.13,8.736e-05,2]
[422756572,1779370240000,-500.0,8.736e-05,2]
[422756568,1779370240000,-500.0,8.736e-05,2]
[422756571,1779370240000,-500.0,8.736e-05,2]
[422756569,1779370240000,-576.04,8.736e-05,2]
[422756574,1779370240000,-724.54,8.736e-05,2]
[422756570,1779370240000,-500.0,8.736e-05,2]
[422756578,1779370240000,-500.0,8.736e-05,2]
[422756582,1779370240000,-500.0,8.736e-05,2]
[422756591,1779370240000,-500.0,8.736e-05,2]
[422756581,1779370240000,-500.0,8.736e-05,2]
[422756585,1779370240000,-575.74,8.736e-05,2]
[422756586,1779370240000,-500.0,8.736e-05,2]
[422756587,1779370240000,-500.0,8.736e-05,2]
[422756588,1779370240000,-500.0,8.736e-05,2]
[422756584,1779370240000,-500.0,8.736e-05,2]
[422756583,1779370240000,-500.0,8.736e-05,2]
[422756573,1779370240000,-4318.52,8.736e-05,2]
[422756593,1779370240000,-151.0,8.761e-05,2]
[422756580,1779370240000,-500.0,8.736e-05,2]
[422756567,1779370240000,-500.0,8.736e-05,2]
[422756561,1779370240000,-500.0,8.735e-05,2]